bitfinex-derivatives/quotes_SOLF0:USTF0_20250831
["timestamp","ask_amount","ask_price","bid_price","bid_amount"]
[1756666490895,10.32,205.46,205.41,11.70227073]
[1756666491096,10.32,205.46,205.41,13.42000127]
[1756666491593,10.32,205.46,205.42,7.62]
[1756666495396,10.32,205.46,205.41,5.80000127]
[1756666495596,10.32,205.46,205.42,7.62]
[1756666495998,10.32,205.46,205.41,5.80000127]
[1756666496201,10.32,205.46,205.42,7.62]
[1756666496899,10.32,205.46,205.41,5.80000127]
[1756666497599,1.71773054,205.43,205.32,11.70227073]
[1756666497798,1.71773054,205.36,205.33,7.62]
[1756666498099,14.89773054,205.36,205.33,7.62]
[1756666498294,1.71773054,205.36,205.33,7.62]
[1756666498491,3.93773054,205.36,205.31,4.08227073]
[1756666498897,3.93773054,205.36,205.3,5.80000127]
[1756666499200,3.93773054,205.36,205.31,7.62]
[1756666499594,3.93773054,205.36,205.3,1.71773054]
[1756666499898,2.22,205.36,205.32,1.71773054]
[1756666500598,2.22,205.36,205.33,7.62]
[1756666501700,2.22,205.36,205.32,1.71773054]
[1756666501896,3.93773054,205.36,205.3,7.62]
[1756666502101,3.93773054,205.36,205.3,9.33773054]
[1756666502397,3.93773054,205.36,205.3,7.62]
[1756666502594,1.71773054,205.34,205.3,7.62]
[1756666504005,11.14,205.33,205.3,7.62]
[1756666506605,19.62,205.33,205.29,7.62]
[1756666506806,27.56,205.33,205.24,7.62]
[1756666507007,27.56,205.33,205.29,1.71773054]
[1756666507197,27.56,205.33,205.3,7.62]
[1756666509107,1.71773054,205.34,205.29,1.71773054]
[1756666509306,35.02,205.33,205.3,7.57]
[1756666509507,2.27655484,205.32,205.3,7.57]
[1756666509808,2.27655484,205.31,205.27,1.71773054]
[1756666510010,2.27655484,205.3,205.28,7.57]
[1756666510206,2.27655484,205.29,205.28,7.57]
[1756666511910,2.27655484,205.29,205.28,9.28773054]
[1756666513409,2.27655484,205.29,205.28,7.57]
[1756666516011,2.27655484,205.29,205.28,9.28773054]
[1756666518211,40.36,205.32,205.28,1.71773054]
[1756666518413,2.27446798,205.31,205.29,7.57]
[1756666518610,2.27446798,205.3,205.29,7.57]
[1756666522312,1.71773054,205.39,205.29,7.57]
[1756666522510,78.38453847,205.38,205.34,7.57]
[1756666522712,76.11,205.38,205.33,1.71773054]
[1756666522912,2.29,205.38,205.34,7.57]
[1756666523113,118.24,205.37,205.34,7.57]
[1756666523315,2.29,205.36,205.34,7.57]
[1756666525621,118.24,205.37,205.34,7.57]
[1756666526120,120.5,205.37,205.34,7.57]
[1756666528129,2.26,205.36,205.34,7.57]
[1756666529626,118.24,205.37,205.33,1.71773054]
[1756666529831,118.24,205.37,205.34,7.57]
[1756666530032,118.22,205.36,205.34,7.57]
[1756666530825,120.48,205.36,205.34,7.57]
[1756666531933,2.26,205.36,205.34,7.57]
[1756666532231,118.22,205.35,205.34,7.57]
[1756666532534,120.48,205.36,205.34,7.57]
[1756666533935,2.26,205.36,205.33,9.28773054]
[1756666534135,120.48,205.36,205.33,9.28773054]
[1756666535037,2.26,205.35,205.33,9.28773054]
[1756666536334,2.26,205.36,205.33,9.28773054]
[1756666536535,120.48,205.36,205.34,7.57]
[1756666537933,2.29,205.35,205.33,9.13773054]
[1756666538437,118.22,205.36,205.33,1.71773054]
[1756666538630,118.22,205.36,205.26,4.08227073]
[1756666538631,2.29,205.35,205.31,1.71773054]
[1756666538831,2.29,205.35,205.32,7.42]
[1756666539028,2.29,205.35,205.31,1.71773054]
[1756666539237,2.29,205.35,205.32,7.42]
[1756666539635,2.29,205.35,205.31,1.71773054]
[1756666539937,2.29,205.35,205.33,7.42]
[1756666541736,1.71773054,205.38,205.32,1.71773054]
[1756666542035,14.24,205.37,205.35,7.42]
[1756666542235,1.71773054,205.4,205.34,1.71773054]
[1756666542440,118.22,205.4,205.32,4.08227073]
[1756666542739,120.51,205.4,205.37,9.13773054]
[1756666542936,120.51,205.4,205.37,1.71773054]
[1756666543138,120.51,205.4,205.37,9.13773054]
[1756666543640,2.29,205.39,205.37,9.13773054]
[1756666544538,120.49,205.39,205.37,9.13773054]
[1756666544841,118.2,205.39,205.38,7.42]
[1756666545140,118.2,205.39,205.37,9.13773054]
[1756666545332,1.71773054,205.43,205.37,1.71773054]
[1756666545637,2.29,205.41,205.38,7.42]
[1756666547941,2.29,205.41,205.37,1.71773054]
[1756666548142,2.29,205.41,205.38,7.42]
[1756666548343,329.59,205.45,205.39,1.71773054]
[1756666548542,327.3,205.45,205.4,7.42]
[1756666548841,2.29,205.43,205.4,7.42]
[1756666550636,118.2,205.42,205.39,1.71773054]
[1756666550841,118.2,205.42,205.4,7.42]
[1756666551738,118.2,205.42,205.39,1.71773054]
[1756666552242,2.29,205.43,205.4,7.42]
[1756666552540,118.2,205.42,205.39,1.71773054]
[1756666552740,118.2,205.42,205.4,7.42]
[1756666554440,2.29,205.44,205.4,7.42]
[1756666554644,120.47,205.43,205.4,7.42]
[1756666555445,2.29,205.43,205.4,7.42]
[1756666555742,118.18,205.42,205.4,7.42]
[1756666557142,327.3,205.45,205.41,1.71773054]
[1756666557350,118.18,205.44,205.41,1.71773054]
[1756666557846,118.18,205.44,205.42,7.42]
[1756666558646,118.18,205.43,205.42,7.42]
[1756666561748,329.59,205.45,205.41,1.71773054]
[1756666562051,327.3,205.45,205.44,7.42]
[1756666562248,2.29,205.48,205.44,7.42]
[1756666562452,24.08,205.47,205.45,9.13773054]
[1756666562645,24.08,205.47,205.45,1.71773054]
[1756666562948,24.08,205.47,205.45,9.13773054]
[1756666563155,1.71773054,205.53,205.45,9.13773054]
[1756666563156,46.94,205.46,205.45,9.13773054]
[1756666563350,53.48,205.46,205.45,9.13773054]
[1756666563954,1.71773054,205.53,205.45,9.13773054]
[1756666564254,2.28,205.51,205.45,9.13773054]
[1756666564453,118.16,205.5,205.45,9.13773054]
[1756666564649,2.28,205.49,205.45,1.71773054]
[1756666564850,118.16,205.48,205.46,7.42]
[1756666565654,120.44,205.48,205.42,7.42]
[1756666565854,2.28,205.47,205.45,1.71773054]
[1756666566053,1.71773054,205.51,205.45,1.71773054]
[1756666566259,120.44,205.5,205.45,1.71773054]
[1756666566948,118.16,205.49,205.45,1.71773054]
[1756666567153,2.28,205.48,205.44,1.71773054]
[1756666567654,2.28,205.46,205.44,1.71773054]
[1756666568953,118.14,205.47,205.44,1.71773054]
[1756666569159,2.26,205.46,205.44,1.71773054]
[1756666572659,2.26,205.56,205.45,7.46]
[1756666572863,2.26,205.52,205.46,1.71773054]
[1756666573770,2.26,205.5,205.46,9.17773054]
[1756666575065,118.14,205.51,205.46,9.17773054]
[1756666575663,2.26,205.5,205.46,9.17773054]
[1756666575863,2.26,205.56,205.49,7.46]
[1756666576063,2.26,205.57,205.52,1.71773054]
[1756666576263,2.26,205.55,205.52,9.17773054]
[1756666576468,118.12,205.54,205.52,9.17773054]
[1756666576663,120.38,205.54,205.52,9.17773054]
[1756666577167,2.26,205.54,205.52,9.17773054]
[1756666577361,120.38,205.54,205.52,1.71773054]
[1756666578873,2.26,205.54,205.52,1.71773054]
[1756666579060,80.94,205.54,205.52,1.71773054]
[1756666579560,118.12,205.54,205.52,9.17773054]
[1756666580069,118.12,205.55,205.53,7.46]
[1756666580266,327.96690078,205.62,205.54,1.71773054]
[1756666580470,118.12,205.61,205.57,1.71773054]
[1756666581165,2.26,205.6,205.57,1.71773054]
[1756666581368,2.26,205.6,205.53,7.46]
[1756666581565,118.12,205.61,205.56,1.71773054]
[1756666582461,2.26,205.6,205.56,1.71773054]
[1756666582663,118.12,205.61,205.56,1.71773054]
[1756666582869,2.26,205.6,205.56,1.71773054]
[1756666583074,118.12,205.61,205.56,1.71773054]
[1756666583668,2.26,205.6,205.56,1.71773054]
[1756666583870,118.12,205.61,205.56,1.71773054]
[1756666584172,2.26,205.6,205.53,10.14369978]
[1756666587777,118.08,205.59,205.54,7.46]
[1756666588877,118.08,205.58,205.54,7.46]
[1756666589180,118.08,205.58,205.53,2.68369978]
[1756666590574,118.08,205.58,205.54,7.46]
[1756666590781,118.08,205.58,205.53,2.68369978]
[1756666591878,118.08,205.58,205.54,7.46]
[1756666592184,118.08,205.58,205.53,2.68369978]
[1756666592481,2.25,205.57,205.52,10.14369978]
[1756666592688,118.08,205.58,205.52,10.14369978]
[1756666592887,120.33,205.58,205.52,2.68369978]
[1756666596287,120.33,205.57,205.52,2.68369978]
[1756666596488,120.33,205.57,205.53,7.46]
[1756666596889,327.12,205.62,205.53,7.46]
[1756666597080,118.08,205.61,205.53,7.46]
[1756666597686,2.25,205.6,205.53,7.46]
[1756666597888,118.08,205.61,205.53,7.46]
[1756666598089,2.24,205.6,205.53,7.46]
[1756666598490,118.08,205.61,205.53,7.46]
[1756666599187,2.24,205.6,205.53,7.46]
[1756666599584,118.08,205.61,205.53,7.46]
[1756666600591,2.24,205.6,205.53,7.46]
[1756666601090,118.08,205.61,205.53,7.46]
[1756666601390,2.24,205.6,205.53,7.46]
[1756666602188,118.06,205.59,205.53,7.46]
[1756666602382,2.24,205.58,205.53,7.46]
[1756666602686,118.06,205.57,205.56,7.55]
[1756666602887,329.36,205.62,205.56,7.55]
[1756666603088,118.06,205.61,205.55,2.68369978]
[1756666603288,329.36,205.62,205.56,7.55]
[1756666603483,118.06,205.61,205.56,7.55]
[1756666603883,118.06,205.61,205.55,2.68369978]
[1756666604191,2.24,205.6,205.58,1.71716802]
[1756666604891,2.24,205.6,205.48,4.08225484]
[1756666605094,2.24,205.61,205.55,1.71716802]
[1756666605283,118.06,205.59,205.56,7.55]
[1756666605594,118.06,205.58,205.57,9.26716802]
[1756666605989,120.3,205.58,205.57,1.71716802]
[1756666606190,120.3,205.58,205.56,1.71716802]
[1756666606391,2.24,205.58,205.56,1.71716802]
[1756666606584,118.1,205.57,205.56,1.71716802]
[1756666607394,118.12,205.57,205.56,1.71716802]
[1756666607590,118.12,205.57,205.56,9.26716802]
[1756666607791,120.36,205.59,205.57,7.55]
[1756666608096,120.36,205.59,205.56,9.26716802]
[1756666609795,2.24,205.58,205.56,1.71716802]
[1756666610288,2.24,205.58,205.56,9.26716802]
[1756666611689,327.12,205.62,205.57,7.55]
[1756666611890,120.36,205.61,205.58,1.71716802]
[1756666612097,118.12,205.61,205.58,1.71716802]
[1756666612593,2.24,205.6,205.58,1.71716802]
[1756666614695,118.1,205.59,205.58,1.71716802]
[1756666614896,2.24,205.6,205.58,1.71716802]
[1756666615096,118.08,205.59,205.58,1.71716802]
[1756666615694,120.32,205.59,205.58,1.71716802]
[1756666616492,118.08,205.59,205.57,1.71716802]
[1756666616696,2.24,205.58,205.57,1.71716802]
[1756666618395,2.24,205.58,205.51,4.08225484]
[1756666618396,2.24,205.58,205.56,1.71716802]
[1756666618602,118.08,205.59,205.56,1.71716802]
[1756666618802,2.24,205.58,205.56,1.71716802]
[1756666621693,5.47538983,205.69,205.56,1.71716802]
[1756666621902,122.01716802,205.68,205.62,1.71716802]
[1756666622098,120.3,205.68,205.62,1.71716802]
[1756666622299,2.24,205.68,205.62,1.71716802]
[1756666622493,118.12,205.67,205.62,1.71716802]
[1756666622697,2.24,205.66,205.62,1.71716802]
[1756666623311,2.24,205.66,205.59,7.55]
[1756666623604,118.12,205.67,205.62,1.71716802]
[1756666624110,2.24,205.66,205.62,1.71716802]
[1756666624605,2.24,205.66,205.63,7.55]
[1756666624805,120.34,205.65,205.63,7.55]
[1756666625207,2.24,205.65,205.62,1.71716802]
[1756666625400,118.18,205.64,205.62,9.26716802]
[1756666625600,2.24,205.65,205.62,9.26716802]
[1756666625799,329.12,205.7,205.64,1.71716802]
[1756666626001,120.42,205.69,205.65,7.55]
[1756666626306,118.2,205.68,205.66,9.26716802]
[1756666626506,120.44,205.68,205.66,1.71716802]
[1756666627205,120.44,205.68,205.65,1.71716802]
[1756666627505,2.24,205.67,205.65,1.71716802]
[1756666628608,120.56,205.67,205.65,1.71716802]
[1756666629407,2.24,205.67,205.65,1.71716802]
[1756666629704,2.25,205.66,205.65,1.71716802]
[1756666632808,2.25,205.67,205.63,1.71716802]
[1756666633004,13.34,205.68,205.63,1.71716802]
[1756666633603,2.25,205.67,205.63,9.41716802]
[1756666634010,13.34,205.68,205.63,9.41716802]
[1756666634210,2.25,205.67,205.63,9.41716802]
[1756666634409,13.34,205.68,205.63,7.7]
[1756666634604,13.34,205.68,205.64,1.71716802]
[1756666635412,2.25,205.67,205.64,1.71716802]
[1756666635612,13.34,205.68,205.64,1.71716802]
[1756666635813,2.25,205.67,205.64,1.71716802]
[1756666636412,15.55,205.68,205.65,7.7]
[1756666638311,2.25,205.67,205.57,4.06181608]
[1756666638614,2.25,205.67,205.64,1.71716802]
[1756666638814,13.3,205.68,205.64,1.71716802]
[1756666639015,2.25,205.67,205.64,1.71716802]
[1756666639218,13.3,205.68,205.64,1.71716802]
[1756666639615,2.25,205.67,205.64,1.71716802]
[1756666639910,13.3,205.68,205.64,1.71716802]
[1756666640117,2.25,205.67,205.64,1.71716802]
[1756666640321,13.3,205.68,205.64,1.71716802]
[1756666640523,2.25,205.67,205.64,1.71716802]
[1756666641025,2.25,205.67,205.64,9.41716802]
[1756666641621,13.3,205.68,205.64,9.41716802]
[1756666641822,2.25,205.67,205.64,9.41716802]
[1756666643220,2.25,205.67,205.64,1.71716802]
[1756666643420,15.07,205.69,205.65,7.7]
[1756666643626,2.25,205.68,205.65,7.7]
[1756666643826,12.82,205.69,205.65,7.7]
[1756666644725,2.25,205.68,205.65,7.7]
[1756666645125,14.53716802,205.69,205.65,7.7]
[1756666645827,2.25,205.68,205.64,1.71716802]
[1756666646026,2.28,205.68,205.64,1.71716802]
[1756666646228,14.53716802,205.69,205.64,9.41716802]
[1756666647427,2.28,205.68,205.64,9.41716802]
[1756666647628,14.53716802,205.69,205.64,9.41716802]
[1756666647823,12.82,205.69,205.64,9.41716802]
[1756666648025,2.28,205.68,205.64,9.41716802]
[1756666648429,1.71716802,205.67,205.59,7.7]
[1756666648630,3.99716802,205.65,205.59,9.41716802]
[1756666649330,2.28,205.65,205.59,9.41716802]
[1756666651030,26.6,205.65,205.59,9.41716802]
[1756666651432,2.28,205.71,205.62,7.7]
[1756666651729,3.99716802,205.68,205.64,7.7]
[1756666652236,2.28,205.67,205.64,7.7]
[1756666652531,35.08,205.7,205.64,7.7]
[1756666652532,2.28,205.69,205.64,7.7]
[1756666652736,3.99716802,205.67,205.64,7.7]
[1756666652939,122.23716802,205.67,205.64,7.7]
[1756666653138,119.95716802,205.67,205.64,7.7]
[1756666653335,119.95716802,205.67,205.61,1.71716802]
[1756666653933,122.23716802,205.67,205.61,9.41716802]
[1756666656444,0.84639613,205.73,205.57,11.76181608]
[1756666656649,2.94,205.72,205.66,9.41716802]
[1756666657953,2.94,205.72,205.66,7.7]
[1756666658551,2.28,205.74,205.66,7.7]
[1756666658751,19.86,205.73,205.66,7.7]
[1756666658951,2.24,205.72,205.66,7.7]
[1756666660250,35.9,205.71,205.64,7.33]
[1756666661651,2.24,205.7,205.64,7.33]
[1756666662547,50.26,205.69,205.63,7.33]
[1756666662751,57.3,205.68,205.62,2.68096595]
[1756666662948,57.3,205.68,205.63,7.33]
[1756666663158,57.46,205.67,205.63,7.33]
[1756666663755,57.46,205.67,205.62,2.68096595]
[1756666663954,57.46,205.67,205.63,7.33]
[1756666664152,57.46,205.67,205.62,2.68096595]
[1756666664352,2.24,205.69,205.63,7.33]
[1756666664553,59.46,205.69,205.63,7.33]
[1756666665850,2.24,205.74,205.63,7.33]
[1756666666052,2.24,205.72,205.63,7.33]
[1756666668756,2.24,205.72,205.63,10.01096595]
[1756666669255,28.6,205.71,205.63,10.01096595]
[1756666669861,2.24,205.72,205.63,10.01096595]
[1756666670158,45.6,205.71,205.63,10.01096595]
[1756666673261,45.6,205.71,205.64,7.33]
[1756666673463,2.24,205.7,205.64,7.33]
[1756666676764,33.12,205.7,205.64,7.33]
[1756666677967,2.24,205.7,205.64,7.33]
[1756666678165,45.38,205.7,205.64,7.33]
[1756666678568,2.24,205.7,205.64,7.33]
[1756666678867,56.96,205.7,205.64,7.33]
[1756666679269,2.24,205.7,205.64,7.33]
[1756666679565,15.86,205.7,205.64,7.33]
[1756666679966,15.86,205.7,205.66,1.71589997]
[1756666680467,2.24,205.69,205.66,7.33]
[1756666680666,2.24,205.69,205.66,9.04589997]
[1756666682667,2.24,205.69,205.66,1.71589997]
[1756666682867,2.24,205.69,205.67,7.33]
[1756666686674,2.24,205.69,205.66,1.71589997]
[1756666686870,2.24,205.69,205.66,9.04589997]
[1756666687871,2.26,205.69,205.66,1.71589997]
[1756666688376,2.26,205.69,205.66,9.26589997]
[1756666689278,2.26,205.69,205.66,1.71589997]
[1756666689479,2.26,205.69,205.67,7.55]
[1756666689777,119.82,205.69,205.67,7.55]
[1756666690079,2.26,205.69,205.67,7.55]
[1756666690279,2.26,205.75,205.67,7.55]
[1756666690572,3.97589997,205.73,205.67,7.55]
[1756666690971,5.44750246,205.76,205.69,7.55]
[1756666691176,120.56,205.75,205.71,7.55]
[1756666691485,118.32,205.74,205.73,7.55]
[1756666692179,326.78,205.77,205.73,1.71589997]
[1756666692386,118.34,205.76,205.73,1.71589997]
[1756666692590,118.34,205.76,205.74,7.55]
[1756666692784,118.34,205.76,205.73,1.71589997]
[1756666693184,118.34,205.76,205.66,4.06181608]
[1756666693185,326.78,205.77,205.67,7.55]
[1756666693386,118.34,205.76,205.74,9.26589997]
[1756666693990,118.34,205.76,205.75,7.55]
[1756666694192,118.34,205.76,205.74,1.71589997]
[1756666694386,118.34,205.76,205.74,9.26589997]
[1756666696792,329.04,205.77,205.74,9.26589997]
[1756666696993,118.3,205.76,205.74,9.26589997]
[1756666697292,120.56,205.76,205.74,9.26589997]
[1756666699590,120.56,205.76,205.74,1.71589997]
[1756666699892,2.26,205.75,205.74,1.71589997]
[1756666701996,326.78,205.77,205.74,1.71589997]
[1756666702196,118.22,205.76,205.75,7.55]
[1756666702392,326.78,205.77,205.75,7.55]
[1756666702596,118.22,205.76,205.75,7.55]
[1756666705106,2.26,205.75,205.74,1.71589997]
[1756666709213,2.25,205.75,205.71,7.55]
[1756666709409,2.25,205.75,205.72,1.71589997]
[1756666709710,118.16,205.74,205.72,1.71589997]
[1756666709898,120.41,205.74,205.72,1.71589997]
[1756666710298,120.41,205.74,205.71,7.55]
[1756666710499,120.41,205.74,205.72,1.71589997]
[1756666713806,2.25,205.74,205.72,1.71589997]
[1756666714004,118.12,205.73,205.72,1.71589997]
[1756666714712,326.78,205.77,205.73,7.55]
[1756666714909,120.37,205.76,205.73,7.55]
[1756666717120,120.37,205.76,205.74,1.71589997]
[1756666717416,2.25,205.75,205.74,1.71589997]
[1756666718116,118.12,205.76,205.7,7.55]
[1756666718318,2.26,205.75,205.73,1.71589997]
[1756666718508,118.16,205.74,205.73,1.71589997]
[1756666719416,120.42,205.74,205.73,1.71589997]
[1756666719917,120.42,205.74,205.7,7.55]
[1756666720118,120.42,205.74,205.73,1.71589997]
[1756666723920,2.26,205.74,205.73,1.71589997]
[1756666724122,120.4,205.74,205.73,1.71589997]
[1756666726325,120.34,205.74,205.73,1.71589997]
[1756666726824,118.08,205.74,205.73,1.71589997]
[1756666727423,120.34,205.74,205.73,1.71589997]
[1756666728628,118.08,205.74,205.7,7.55]
[1756666728826,1.71589997,205.8,205.73,1.71589997]
[1756666729127,118.16,205.79,205.73,1.71589997]
[1756666729328,2.26,205.78,205.73,1.71589997]
[1756666733625,118.16,205.79,205.7,7.55]
[1756666733829,2.26,205.78,205.72,1.71589997]
[1756666735023,2.26,205.76,205.72,1.71589997]
[1756666735330,118.14,205.77,205.72,1.71589997]
[1756666736129,2.26,205.76,205.72,1.71589997]
[1756666736432,118.14,205.77,205.72,1.71589997]
[1756666737227,2.26,205.76,205.72,1.71589997]
[1756666737432,17.7,205.75,205.69,4.06181608]
[1756666737732,17.7,205.75,205.74,1.71589997]
[1756666738627,19.96,205.75,205.74,1.71589997]
[1756666741536,2.26,205.74,205.73,1.71589997]
[1756666742438,36.68,205.74,205.73,1.71589997]
[1756666742938,50.86,205.75,205.73,9.23589997]
[1756666743138,48.6,205.75,205.73,1.71589997]
[1756666743437,48.6,205.75,205.74,7.52]
[1756666743939,48.6,205.75,205.73,1.71589997]
[1756666744130,50.86,205.75,205.73,1.71589997]
[1756666744934,2.26,205.75,205.73,9.23589997]
[1756666755852,81.84,205.76,205.74,7.38]
[1756666756145,84.1,205.76,205.74,7.38]
[1756666756446,2.26,205.75,205.73,1.71589997]
[1756666756950,2.26,205.75,205.7,4.06181608]
[1756666757152,2.26,205.75,205.73,9.09589997]
[1756666759560,2.26,205.75,205.73,1.71589997]
[1756666759752,2.26,205.75,205.73,9.09589997]
[1756666759952,2.26,205.75,205.74,7.38]
[1756666762560,2.26,205.76,205.74,7.38]
[1756666764557,96.74,205.77,205.74,7.38]
[1756666764860,2.26,205.76,205.74,7.38]
[1756666765056,96.74,205.77,205.73,9.09589997]
[1756666765357,2.26,205.76,205.73,9.09589997]
[1756666765657,2.26,205.76,205.74,7.38]
[1756666766760,2.26,205.76,205.73,9.09589997]
[1756666767658,96.74,205.77,205.73,9.09589997]
[1756666767861,2.26,205.76,205.73,9.09589997]
[1756666768054,96.74,205.77,205.73,9.09589997]
[1756666768456,2.26,205.76,205.73,9.09589997]
[1756666770263,2.26,205.76,205.73,1.71589997]
[1756666770463,2.26,205.76,205.74,7.38]
[1756666778369,2.26,205.76,205.73,1.71589997]
[1756666778667,2.26,205.76,205.74,7.48]
[1756666781972,96.74,205.77,205.74,7.48]
[1756666782269,99.0,205.77,205.74,7.48]
[1756666782472,2.26,205.77,205.74,7.48]
[1756666782671,118.04,205.76,205.74,7.48]
[1756666782965,2.26,205.75,205.71,7.48]
[1756666783572,119.75589997,205.76,205.69,1.71589997]
[1756666783774,2.26,205.75,205.7,7.48]
[1756666783969,119.75589997,205.76,205.69,1.71589997]
[1756666784273,2.26,205.75,205.7,7.48]
[1756666784667,1.71589997,205.76,205.69,1.71589997]
[1756666784872,2.26,205.74,205.72,7.48]
[1756666785071,14.52,205.73,205.72,7.48]
[1756666785668,14.52,205.73,205.71,1.71589997]
[1756666785971,16.78,205.73,205.71,1.71589997]
[1756666786472,16.78,205.73,205.71,9.19589997]
[1756666794572,5.44750246,205.79,205.71,1.71589997]
[1756666794875,95.21589997,205.78,205.72,7.48]
[1756666795978,3.97589997,205.78,205.72,7.48]
[1756666796276,120.3,205.77,205.71,9.19589997]
[1756666797175,118.04,205.77,205.71,7.48]
[1756666797477,2.26,205.76,205.7,9.19589997]
[1756666797977,118.04,205.77,205.72,1.71589997]
[1756666798173,2.26,205.79,205.73,7.48]
[1756666798381,120.3,205.78,205.72,9.19589997]
[1756666800278,1.71589997,205.74,205.64,4.06181608]
[1756666800478,1.71589997,205.7,205.63,1.71589997]
[1756666800777,45.12,205.69,205.63,9.19589997]
[1756666804377,45.12,205.68,205.63,1.71589997]
[1756666804681,2.26,205.67,205.64,7.48]
[1756666806681,1.71589997,205.7,205.64,7.48]
[1756666806883,54.14,205.67,205.64,7.48]
[1756666807083,54.14,205.67,205.63,1.71589997]
[1756666807282,56.4,205.67,205.64,7.48]
[1756666808386,56.4,205.67,205.63,1.71589997]
[1756666808880,56.4,205.67,205.64,7.81]
[1756666809482,56.39,205.67,205.64,7.81]
[1756666811688,2.25,205.66,205.64,7.81]
[1756666814286,2.25,205.66,205.63,1.71589997]
[1756666814589,2.25,205.66,205.64,7.81]
[1756666814890,2.25,205.66,205.63,1.71589997]
[1756666815289,2.25,205.66,205.64,7.81]
[1756666815986,2.25,205.66,205.63,7.81]
[1756666816286,2.25,205.66,205.61,1.71589997]
[1756666816481,2.25,205.66,205.61,9.52589997]
[1756666816888,2.25,205.64,205.57,7.81]
[1756666817087,1.71589997,205.65,205.57,7.81]
[1756666817289,2.25,205.64,205.57,9.52589997]
[1756666817488,1.71589997,205.65,205.57,9.52589997]
[1756666817683,1.71589997,205.63,205.57,1.71589997]
[1756666817888,2.25,205.62,205.57,9.52589997]
[1756666818087,1.71589997,205.63,205.57,1.71589997]
[1756666818381,2.25,205.63,205.57,9.52589997]
[1756666818584,61.36,205.62,205.59,1.71589997]
[1756666818886,61.36,205.62,205.6,7.81]
[1756666819389,61.36,205.62,205.6,1.71589997]
[1756666819589,69.86,205.65,205.6,9.52589997]
[1756666819889,69.86,205.65,205.64,7.81]
[1756666820587,77.92,205.66,205.63,1.71589997]
[1756666820792,77.92,205.66,205.64,7.81]
[1756666821995,2.25,205.69,205.64,7.81]
[1756666822292,2.25,205.67,205.64,7.81]
[1756666824793,120.31,205.67,205.64,7.81]
[1756666827598,2.28,205.66,205.64,7.81]
[1756666834192,2.28,205.66,205.63,7.81]
[1756666834393,2.28,205.66,205.62,1.71589997]
[1756666835801,2.28,205.66,205.63,7.81]
[1756666836000,2.28,205.66,205.62,1.71589997]
[1756666836207,2.28,205.66,205.63,7.81]
[1756666836807,2.28,205.66,205.62,1.71589997]
[1756666837708,2.28,205.66,205.63,7.81]
[1756666838009,2.28,205.66,205.62,1.71589997]
[1756666838199,2.28,205.66,205.63,7.88]
[1756666838699,2.28,205.66,205.62,1.71589997]
[1756666838899,2.28,205.66,205.63,7.88]
[1756666839403,2.28,205.66,205.62,1.71589997]